fUST/lending_fUST_20250122
["ID","MTS","AMOUNT","RATE_DAILY","PERIOD"]
[349949424,1737532234299,-500.0,0.00018988,2]
[349949425,1737532234309,-500.0,0.00018988,2]
[349949426,1737532234319,-500.0,0.00018988,2]
[349949427,1737532234329,-621.82572378,0.00018988,2]
[349949428,1737532234339,-500.0,0.00018988,2]
[349949429,1737532234348,-500.0,0.00018988,2]
[349949430,1737532234358,-500.0,0.00018988,2]
[349949431,1737532234367,-500.0,0.00018988,2]
[349949432,1737532234377,-415.17852106,0.00018988,2]
[349949433,1737532234386,-500.0,0.00018988,2]
[349949434,1737532234395,-500.0,0.00018988,2]
[349949435,1737532234405,-500.0,0.00018988,2]
[349949436,1737532234415,-200.48772933,0.00018988,2]
[349949437,1737532234424,-500.0,0.00018988,2]
[349949438,1737532234434,-500.0,0.00018988,2]
[349949439,1737532234444,-500.0,0.00018988,2]
[349949440,1737532234453,-151.0,0.00018989,2]
[349949441,1737532234463,-151.0,0.00018989,2]
[349949442,1737532234473,-151.0,0.00018989,2]
[349949443,1737532234482,-151.0,0.00018989,2]
[349949444,1737532234589,-297.496224,0.00018989,2]
[349949445,1737532234604,-151.0,0.00018989,2]
[349949446,1737532234614,-151.0,0.00018989,2]
[349949447,1737532234624,-160.649674,0.00018989,2]
[349949448,1737532234634,-151.0,0.00018989,2]
[349949449,1737532234644,-151.0,0.00018989,2]
[349949450,1737532234654,-151.0,0.00018989,2]
[349949451,1737532234663,-151.0,0.00018989,2]
[349949452,1737532234673,-151.0,0.00018989,2]
[349949453,1737532234682,-151.0,0.00018989,2]
[349949454,1737532234691,-151.0,0.00018989,2]
[349949455,1737532234701,-2746.10971827,0.0001899,2]
[349949456,1737532234710,-151.0,0.0001899,2]
[349949457,1737532234720,-151.0,0.0001899,2]
[349949458,1737532234731,-151.0,0.0001899,2]
[349949459,1737532234746,-158.862389,0.0001899,2]
[349949460,1737532234764,-151.0,0.0001899,2]
[349949461,1737532234773,-151.0,0.0001899,2]
[349949462,1737532234783,-151.0,0.0001899,2]
[349949463,1737532234792,-151.0,0.0001901,2]
[349949464,1737532234801,-151.0,0.0001901,2]
[349949465,1737532234811,-151.0,0.00019095,2]
[349949466,1737532234820,-151.0,0.00019095,2]
[349949467,1737532234832,-151.0,0.00019095,2]
[349949468,1737532234841,-151.0,0.00019095,2]
[349949469,1737532234852,-151.0,0.00019095,2]
[349949470,1737532234861,-151.0,0.00019095,2]
[349949471,1737532234871,-151.0,0.00019162,2]
[349949472,1737532234880,-214.751634,0.00019162,2]
[349949473,1737532234890,-151.0,0.00019162,2]
[349949474,1737532234901,-151.0,0.00019162,2]
[349949475,1737532234910,-243.142349,0.00019162,2]
[349949476,1737532234919,-151.0,0.00019162,2]
[349949477,1737532234928,-234.422606,0.00019162,2]
[349949478,1737532234938,-151.0,0.00019162,2]
[349949479,1737532234947,-151.0,0.00019162,2]
[349949480,1737532234956,-158.564945,0.00019162,2]
[349949481,1737532234965,-151.0,0.00019162,2]
[349949482,1737532234974,-151.0,0.00019162,2]
[349949483,1737532234984,-151.0,0.00019162,2]
[349949484,1737532234994,-151.0,0.00019162,2]
[349949485,1737532235006,-151.0,0.00019162,2]
[349949486,1737532235015,-151.0,0.00019162,2]
[349949487,1737532235025,-151.0,0.00019162,2]
[349949488,1737532235034,-151.0,0.00019162,2]
[349949489,1737532235044,-244.259556,0.00019162,2]
[349949490,1737532235053,-154.007173,0.00019163,2]
[349949491,1737532235062,-151.0,0.00019163,2]
[349949492,1737532235071,-151.0,0.00019178,2]
[349949493,1737532235081,-500.0,0.00019178,2]
[349949494,1737532235090,-500.0,0.00019178,2]
[349949495,1737532235100,-500.0,0.00019178,2]
[349949496,1737532235110,-500.0,0.00019178,2]
[349949497,1737532235120,-467.75879114,0.00019178,2]
[349949498,1737532235130,-176.109863,0.00019178,2]
[349949499,1737532235140,-151.0,0.00019242,2]
[349949500,1737532235150,-151.0,0.00019242,2]
[349949501,1737532235160,-151.0,0.00019242,2]
[349949502,1737532235171,-151.0,0.00019242,2]
[349949503,1737532235181,-151.0,0.00019242,2]
[349949504,1737532235191,-151.0,0.00019242,2]
[349949505,1737532235202,-151.0,0.00019242,2]
[349949506,1737532235212,-151.0,0.00019242,2]
[349949507,1737532235221,-259.016,0.00019242,2]
[349949508,1737532235231,-151.0,0.00019242,2]
[349949509,1737532235240,-151.0,0.00019242,2]
[349949510,1737532235250,-151.0,0.00019242,2]
[349949511,1737532235259,-177.286746,0.00019242,2]
[349949512,1737532235269,-151.0,0.00019242,2]
[349949513,1737532235279,-151.0,0.00019242,2]
[349949514,1737532235289,-151.0,0.00019242,2]
[349949515,1737532235299,-151.0,0.00019242,2]
[349949516,1737532235309,-241.651685,0.00019242,2]
[349949517,1737532235319,-12312.98649662,0.00019244,2]
[349949720,1737532240241,-1823.11018648,0.00017338,5]
[349949722,1737532240251,-151.0,0.00018632,2]
[349949724,1737532240262,-500.0,0.00018988,2]
[349949726,1737532240271,-500.0,0.00018988,2]
[349949728,1737532240281,-500.0,0.00018988,2]
[349949729,1737532240292,-201.68374424,0.00018988,2]
[349949730,1737532240342,-298.31625576,0.00018988,2]
[349949731,1737532240352,-250.0,0.00018988,2]
[349949732,1737532240361,-500.0,0.00018988,2]
[349949733,1737532240371,-500.0,0.00018988,2]
[349949734,1737532240381,-500.0,0.00018988,2]
[349949735,1737532240390,-500.0,0.00018988,2]
[349949736,1737532240399,-500.0,0.00018988,2]
[349949737,1737532240409,-500.0,0.00018988,2]
[349949738,1737532240418,-196.8534316,0.00018988,2]
[349949791,1737532243288,-151.0,0.00018446,2]
[349949794,1737532243298,-161.07138893,0.00018988,2]
[349949796,1737532243311,-142.07517947,0.00018988,2]
[349949798,1737532243322,-500.0,0.00018988,2]
[349949800,1737532243331,-500.0,0.00018988,2]
[349949802,1737532243342,-500.0,0.00018988,2]
[349949804,1737532243352,-500.0,0.00018988,2]
[349949806,1737532243362,-500.0,0.00018988,2]
[349949808,1737532243372,-500.0,0.00018988,2]
[349949810,1737532243381,-500.0,0.00018988,2]
[349949812,1737532243391,-500.0,0.00018988,2]
[349949814,1737532243406,-500.0,0.00018988,2]
[349949815,1737532243417,-500.0,0.00018988,2]
[349949817,1737532243426,-167.19338809,0.00018988,2]
[349949820,1737532243437,-500.0,0.00018988,2]
[349949821,1737532243446,-500.0,0.00018988,2]
[349949823,1737532243456,-500.0,0.00018988,2]
[349949825,1737532243465,-500.0,0.00018988,2]
[349949827,1737532243474,-500.0,0.00018988,2]
[349949829,1737532243483,-500.0,0.00018988,2]
[349949831,1737532243492,-500.0,0.00018988,2]
[349949833,1737532243502,-500.0,0.00018988,2]
[349949835,1737532243511,-500.0,0.00018988,2]
[349949837,1737532243520,-500.0,0.00018988,2]
[349949838,1737532243529,-250.0,0.00018988,2]
[349949840,1737532243538,-500.0,0.00018988,2]
[349949843,1737532243549,-500.0,0.00018988,2]
[349949844,1737532243558,-500.0,0.00018988,2]
[349949847,1737532243569,-500.0,0.00018988,2]
[349949848,1737532243578,-298.52366047,0.00018988,2]
[349949851,1737532243591,-201.47633953,0.00018988,2]
[349949853,1737532243600,-500.0,0.00018988,2]
[349949855,1737532243609,-500.0,0.00018988,2]
[349949857,1737532243618,-500.0,0.00018988,2]
[349949859,1737532243627,-500.0,0.00018988,2]
[349949860,1737532243636,-500.0,0.00018988,2]
[349949862,1737532243646,-500.0,0.00018988,2]
[349949865,1737532243656,-500.0,0.00018988,2]
[349949867,1737532243666,-500.0,0.00018988,2]
[349949869,1737532243676,-151.0,0.00018989,2]
[349949871,1737532243685,-151.0,0.00018989,2]
[349949872,1737532243695,-151.0,0.00018989,2]
[349949875,1737532243705,-12587.01350338,0.00019244,2]
[349949877,1737532243715,-723.7827081,0.00019244,2]
[349949879,1737532243725,-655.6281203,0.00019244,2]
[349949880,1737532243735,-185.67429683,0.00019244,2]
[349949882,1737532243745,-151.0,0.00019244,2]
[349949884,1737532243757,-180.2106,0.00019244,2]
[349949887,1737532243774,-2746.10971827,0.00019285,2]
[349949889,1737532243788,-1364.4100908,0.00019398,2]
[349949891,1737532243797,-12084.25549668,0.00019405,2]
[349949893,1737532243807,-500.0,0.00019485,2]
[349949895,1737532243818,-500.0,0.00019485,2]
[349949897,1737532243828,-500.0,0.00019485,2]
[349949899,1737532243839,-2746.10971827,0.0001958,2]
[349949903,1737532243849,-12084.25549669,0.0001967,2]
[349949906,1737532243858,-500.0,0.00019733,2]
[349949909,1737532243868,-212.850086,0.00019858,2]
[349949910,1737532243877,-151.0,0.00019858,2]
[349949912,1737532243886,-151.0,0.00019858,2]
[349949914,1737532243895,-151.0,0.00019858,2]
[349949916,1737532243904,-151.509967,0.00019858,2]
[349949919,1737532243915,-215.284245,0.00019858,2]
[349949920,1737532243924,-151.0,0.00019858,2]
[349949922,1737532243934,-169.593,0.00019996,2]
[349949925,1737532243947,-187.85001861,0.00019996,2]
[349949927,1737532243956,-1000.0,0.00020033,2]
[349949929,1737532243966,-706.65258323,0.00020033,2]
[349949930,1737532243976,-587.0,0.00020037,2]
[349949932,1737532243985,-151.0,0.00020123,2]
[349949934,1737532243995,-151.0,0.00020123,2]
[349949936,1737532244004,-151.0,0.00020227,2]
[349949939,1737532244014,-1000.0,0.00020281,2]
[349949940,1737532244024,-361.60046366,0.00020315,2]
[349949943,1737532244033,-500.0,0.00020315,2]
[349949944,1737532244043,-500.37077389,0.00020315,2]
[349949946,1737532244052,-266.39832561,0.00020315,2]
[349949948,1737532244062,-266.90671141,0.00020315,2]
[349949950,1737532244072,-269.50601673,0.0002032,2]
[349949953,1737532244082,-159.28819307,0.00020329,2]
[349949955,1737532244091,-151.0,0.00020335,2]
[349949957,1737532244101,-151.0,0.00020335,2]
[349949959,1737532244111,-161.88255831,0.0002037,5]
[349949961,1737532244119,-151.0,0.00020403,2]
[349949962,1737532244129,-500.0,0.00020423,2]
[349949965,1737532244139,-230.811268,0.00020521,2]
[349949966,1737532244148,-151.0,0.00020555,2]
[349949968,1737532244158,-500.0,0.00020625,2]
[349949970,1737532244167,-195.936615,0.00020685,2]
[349949972,1737532244177,-151.0,0.00020685,2]
[349949974,1737532244186,-151.0,0.00020685,2]
[349949976,1737532244194,-151.0,0.00020685,2]
[349949978,1737532244204,-151.0,0.00020685,2]
[349949980,1737532244213,-151.0,0.00020685,2]
[349949982,1737532244223,-151.0,0.00020685,2]
[349949984,1737532244231,-151.0,0.00020685,2]
[349949986,1737532244242,-2014.61757268,0.00020686,2]
[349949988,1737532244250,-230.811268,0.00020712,2]
[349949990,1737532244260,-189.378942,0.00020853,2]
[349949992,1737532244269,-502.70852878,0.00020863,2]
[349949994,1737532244278,-230.811268,0.00020904,2]
[349949996,1737532244288,-167.076,0.0002094,2]
[349949998,1737532244298,-1000.0,0.00020971,2]
[349950000,1737532244307,-1507.15225914,0.00021034,2]
[349950002,1737532244317,-230.811268,0.00021096,2]
[349950004,1737532244327,-170.88802861,0.00021106,2]
[349950006,1737532244338,-500.0,0.00021203,2]
[349950008,1737532244347,-532.35211508,0.00021203,2]
[349950010,1737532244356,-1475.60561186,0.00021283,2]
[349950012,1737532244366,-230.811268,0.00021288,2]
[349950014,1737532244375,-230.811268,0.00021479,2]
[349950016,1737532244385,-500.0,0.00021499,2]
[349950018,1737532244394,-191.6320603,0.00021499,2]
[349950020,1737532244404,-500.0,0.00021499,2]
[349950022,1737532244415,-642.87741272,0.00021499,2]
[349950024,1737532244425,-28406.72275162,0.000215,15]
[349950026,1737532244438,-907.93448861,0.000215,15]
[349950028,1737532244449,-764.24566949,0.000215,15]
[349950031,1737532244463,-1662.5,0.000215,15]
[349950193,1737532246221,-152.0,0.00019435,2]
[349950195,1737532246231,-185.0,0.00019872,2]
[349950197,1737532246241,-10191.0,0.000215,15]
[349950607,1737532613694,163.637574,0.00013973,2]
[349950636,1737532774359,111.87960162,0.00015051,2]
[349950637,1737532774394,505.02039838,0.00015051,2]
[349950641,1737532831770,160.0,0.00023904,120]
[349950696,1737533432363,-322.94093728,0.00017757,2]
[349950699,1737533432415,-4054.12188345,0.00017757,2]
[349950700,1737533432425,-300.0,0.00017935,2]
[349950701,1737533432434,-47295.87811655,0.00017936,2]
[349950723,1737533438273,-1072.62977459,0.00017936,2]
[349950724,1737533438304,-152.0,0.00018118,2]
[349950725,1737533438314,-7457.41544109,0.00018362,2]
[349950726,1737533438327,-10500.0,0.00018362,2]
[349950727,1737533438339,-611.556,0.00018362,2]
[349950728,1737533438351,-867.97582541,0.00018362,2]
[349950729,1737533438362,-1500.0,0.00018362,2]
[349950730,1737533438387,-2830.3060842,0.00018362,2]
[349950731,1737533438398,-1106.040253,0.00018402,2]
[349950732,1737533438408,-190.97382296,0.00018631,2]
[349950733,1737533438419,-544.3811,0.00018907,2]
[349950734,1737533438429,-173.543077,0.00019178,2]
[349950735,1737533438439,-195.2119643,0.00019192,2]
[349950736,1737533438450,-162.26587,0.00019244,2]
[349950737,1737533438460,-232.2383513,0.00019244,2]
[349950738,1737533438471,-162.26587,0.00019251,2]
[349950739,1737533438480,-162.26587,0.00019258,2]
[349950740,1737533438490,-162.26587,0.00019264,2]
[349950741,1737533438500,-162.26587,0.00019271,2]
[349950743,1737533438511,-162.26587,0.00019278,2]
[349950745,1737533438521,-162.26587,0.00019285,2]
[349950747,1737533438530,-162.26587,0.00019292,2]
[349950749,1737533438540,-162.26587,0.00019299,2]
[349950750,1737533438549,-162.26587,0.00019306,2]
[349950751,1737533438559,-162.26587,0.00019313,2]
[349950752,1737533438568,-162.26587,0.00019319,2]
[349950753,1737533438578,-162.26587,0.00019326,2]
[349950754,1737533438586,-162.26587,0.00019333,2]
[349950755,1737533438595,-162.26587,0.0001934,2]
[349950756,1737533438604,-420.0,0.0001957,2]
[349950757,1737533438613,-162.527,0.00019996,2]
[349950758,1737533438622,-187.64034918,0.00019996,2]
[349950759,1737533438635,-160.0,0.0002,2]
[349950760,1737533438645,-3161.0,0.0002,2]
[349950761,1737533438654,-844.10144337,0.0002,2]
[349950762,1737533438665,-844.10144328,0.0002,2]
[349950763,1737533438675,-844.10144328,0.0002,2]
[349950764,1737533438685,-844.10144328,0.0002,2]
[349950765,1737533438694,-844.10144328,0.0002,2]
[349950766,1737533438704,-844.10144328,0.0002,2]
[349950767,1737533438714,-844.10144328,0.00020141,2]
[349950768,1737533438723,-195.2119643,0.00020296,2]
[349950769,1737533438733,-844.10144328,0.00020348,2]
[349950770,1737533438742,-189.2824352,0.00020521,2]
[349950771,1737533438751,-844.10144328,0.00020555,2]
[349950772,1737533438763,-500.0,0.00020625,2]
[349950773,1737533438776,-844.10144328,0.00020762,2]
[349950774,1737533438787,-844.10144328,0.00020969,2]
[349950775,1737533438797,-397.958,0.0002108,2]
[349950776,1737533438809,-153.0000001,0.00021123,2]
[349950777,1737533438822,-844.10144328,0.00021176,2]
[349950778,1737533438834,-587.0,0.00021355,2]
[349950779,1737533438845,-844.10144328,0.00021383,2]
[349950780,1737533438857,-151.0,0.000214,3]
[349950781,1737533438869,-195.2119643,0.000214,2]
[349950782,1737533438882,-516.73243931,0.00021473,2]
[349950783,1737533438895,-151.0,0.00021492,2]
[349950784,1737533438905,-151.0,0.00021492,2]
[349950785,1737533438915,-151.0,0.00021492,2]
[349950786,1737533438925,-151.0,0.00021493,2]
[349950787,1737533438934,-151.0,0.00021493,2]
[349950788,1737533438945,-215.236997,0.00021493,2]
[349950789,1737533438958,-343.30411691,0.00021499,2]
[349950790,1737533438969,-500.0,0.00021499,2]
[349950791,1737533438979,-500.0,0.00021499,2]
[349950792,1737533438989,-500.0,0.00021499,2]
[349950793,1737533438999,-500.0,0.00021499,2]
[349950794,1737533439011,-393.68385062,0.00021499,2]
[349950795,1737533439033,-500.0,0.00021499,2]
[349950796,1737533439045,-500.0,0.00021499,2]
[349950797,1737533439056,-500.0,0.00021499,2]
[349950798,1737533439067,-500.0,0.00021499,2]
[349950799,1737533439079,-500.0,0.00021499,2]
[349950800,1737533439090,-500.0,0.00021499,2]
[349950801,1737533439101,-500.0,0.00021499,2]
[349950802,1737533439112,-500.0,0.00021499,2]
[349950803,1737533439132,-500.0,0.00021499,2]
[349950804,1737533439142,-500.0,0.00021499,2]
[349950805,1737533439153,-500.0,0.00021499,2]
[349950806,1737533439164,-500.0,0.00021499,2]
[349950807,1737533439176,-500.0,0.00021499,2]
[349950808,1737533439186,-500.0,0.00021499,2]
[349950809,1737533439197,-500.0,0.00021499,2]
[349950810,1737533439207,-500.0,0.00021499,2]
[349950811,1737533439218,-500.0,0.00021499,2]
[349950812,1737533439229,-317.41354947,0.00021499,2]
[349950813,1737533439239,-500.0,0.00021499,2]
[349950814,1737533439251,-500.0,0.00021499,2]
[349950815,1737533439261,-500.0,0.00021499,2]
[349950816,1737533439272,-553.43629841,0.00021499,2]
[349950817,1737533439283,-629.69005994,0.00021499,2]
[349950818,1737533439294,-500.0,0.00021499,2]
[349950819,1737533439305,-500.0,0.00021499,2]
[349950820,1737533439316,-500.0,0.00021499,2]
[349950821,1737533439326,-500.0,0.00021499,2]
[349950822,1737533439338,-500.0,0.00021499,2]
[349950823,1737533439349,-500.0,0.00021499,2]
[349950824,1737533439360,-500.0,0.00021499,2]
[349950825,1737533439372,-500.0,0.00021499,2]
[349950826,1737533439386,-500.0,0.00021499,2]
[349950827,1737533439397,-500.0,0.00021499,2]
[349950828,1737533439407,-500.0,0.00021499,2]
[349950829,1737533439417,-500.0,0.00021499,2]
[349950830,1737533439428,-500.0,0.00021499,2]
[349950831,1737533439441,-500.0,0.00021499,2]
[349950832,1737533439455,-421.42560989,0.00021499,2]
[349950833,1737533439466,-500.0,0.00021499,2]
[349950834,1737533439478,-500.0,0.00021499,2]
[349950835,1737533439491,-500.0,0.00021499,2]
[349950836,1737533439503,-500.0,0.00021499,2]
[349950837,1737533439515,-500.0,0.00021499,2]
[349950838,1737533439527,-500.0,0.00021499,2]
[349950839,1737533439539,-500.0,0.00021499,2]
[349950840,1737533439549,-500.0,0.00021499,2]
[349950841,1737533439559,-500.0,0.00021499,2]
[349950842,1737533439570,-500.0,0.00021499,2]
[349950843,1737533439583,-500.0,0.00021499,2]
[349950844,1737533439595,-500.0,0.00021499,2]
[349950845,1737533439607,-500.0,0.00021499,2]
[349950846,1737533439618,-500.0,0.00021499,2]
[349950847,1737533439633,-500.0,0.00021499,2]
[349950848,1737533439643,-500.0,0.00021499,2]
[349950849,1737533439655,-500.0,0.00021499,2]
[349950850,1737533439665,-500.0,0.00021499,2]
[349950851,1737533439678,-500.0,0.00021499,2]
[349950852,1737533439689,-500.0,0.00021499,2]
[349950853,1737533439699,-500.0,0.00021499,2]
[349950854,1737533439711,-500.0,0.00021499,2]
[349950855,1737533439722,-563.55182235,0.00021499,2]
[349950856,1737533439735,-500.0,0.00021499,2]
[349950857,1737533439746,-500.0,0.00021499,2]
[349950858,1737533439756,-500.0,0.00021499,2]
[349950859,1737533439770,-500.0,0.00021499,2]
[349950860,1737533439782,-500.0,0.00021499,2]
[349950862,1737533439796,-500.0,0.00021499,2]
[349950864,1737533439807,-500.0,0.00021499,2]
[349950865,1737533439819,-500.0,0.00021499,2]
[349950866,1737533439831,-500.0,0.00021499,2]
[349950868,1737533439844,-500.0,0.00021499,2]
[349950870,1737533439854,-500.0,0.00021499,2]
[349950872,1737533439865,-500.0,0.00021499,2]
[349950873,1737533439877,-500.0,0.00021499,2]
[349950874,1737533439890,-500.0,0.00021499,2]
[349950875,1737533439901,-500.0,0.00021499,2]
[349950876,1737533439914,-500.0,0.00021499,2]
[349950877,1737533439927,-500.0,0.00021499,2]
[349950878,1737533439938,-500.0,0.00021499,2]
[349950879,1737533439952,-500.0,0.00021499,2]
[349950880,1737533439964,-500.0,0.00021499,2]
[349950881,1737533439976,-500.0,0.00021499,2]
[349950882,1737533439991,-500.0,0.00021499,2]
[349950883,1737533440001,-500.0,0.00021499,2]
[349950884,1737533440013,-500.0,0.00021499,2]
[349950885,1737533440023,-500.0,0.00021499,2]
[349950886,1737533440034,-500.0,0.00021499,2]
[349950887,1737533440046,-500.0,0.00021499,2]
[349950888,1737533440057,-500.0,0.00021499,2]
[349950889,1737533440068,-500.0,0.00021499,2]
[349950891,1737533440079,-500.0,0.00021499,2]
[349950893,1737533440090,-277.08411979,0.00021499,2]
[349950895,1737533440102,-500.0,0.00021499,2]
[349950897,1737533440113,-500.0,0.00021499,2]
[349950899,1737533440124,-500.0,0.00021499,2]
[349950902,1737533440139,-500.0,0.00021499,2]
[349950905,1737533440279,-625.11505499,0.00021499,2]
[349950906,1737533440290,-500.0,0.00021499,2]
[349950907,1737533440301,-500.0,0.00021499,2]
[349950908,1737533440311,-500.0,0.00021499,2]
[349950909,1737533440322,-500.0,0.00021499,2]
[349950910,1737533440332,-500.0,0.00021499,2]
[349950912,1737533440342,-500.0,0.00021499,2]
[349950914,1737533440351,-500.0,0.00021499,2]
[349950916,1737533440361,-500.0,0.00021499,2]
[349950918,1737533440371,-1109.42200749,0.00021499,2]
[349950920,1737533440381,-500.0,0.00021499,2]
[349950922,1737533440390,-500.0,0.00021499,2]
[349950923,1737533440401,-1109.42200749,0.00021499,2]
[349950924,1737533440411,-1109.42200749,0.00021499,2]
[349950925,1737533440420,-200.0,0.00021499,2]
[349950926,1737533440430,-200.0,0.00021499,2]
[349950927,1737533440439,-1109.42200749,0.00021499,2]
[349950928,1737533440448,-1109.42200749,0.00021499,2]
[349950929,1737533440458,-1109.42200749,0.00021499,2]
[349950930,1737533440469,-1109.42200749,0.00021499,2]
[349950931,1737533440479,-1109.42200749,0.00021499,2]
[349950932,1737533440489,-1109.42200749,0.00021499,2]
[349950933,1737533440499,-1109.42200749,0.00021499,2]
[349950934,1737533440508,-1109.42200749,0.00021499,2]
[349950935,1737533440517,-1109.42200749,0.00021499,2]
[349950936,1737533440526,-1109.42200749,0.00021499,2]
[349950937,1737533440535,-1109.42200749,0.00021499,2]
[349950938,1737533440544,-1109.42200749,0.00021499,2]
[349950939,1737533440554,-1109.42200749,0.00021499,2]
[349950940,1737533440563,-1109.42200749,0.00021499,2]
[349950941,1737533440572,-1109.42200749,0.00021499,2]
[349950942,1737533440581,-1109.42200749,0.00021499,2]
[349950943,1737533440590,-1109.42200749,0.00021499,2]
[349950944,1737533440600,-1109.42200749,0.00021499,2]
[349950945,1737533440609,-1109.42200749,0.00021499,2]
[349950946,1737533440619,-1109.42200749,0.00021499,2]
[349950947,1737533440631,-1109.42200749,0.00021499,2]
[349950948,1737533440641,-1109.42200749,0.00021499,2]
[349950949,1737533440651,-1109.42200749,0.00021499,2]
[349950950,1737533440662,-1109.42200749,0.00021499,2]
[349950951,1737533440672,-1109.42200749,0.00021499,2]
[349950952,1737533440683,-767.29471102,0.00021499,2]
[349951923,1737533492747,163.494458,0.00013973,2]
[349951969,1737534530793,163.494458,0.00013973,2]
[349951970,1737534537193,10000.0,0.00024,120]
[349951971,1737534546972,10000.0,0.00024,120]
[349951972,1737534564699,8666.59,0.00024,120]
[349951973,1737534604266,1000.0,0.00024,120]
[349952074,1737534633490,-664.12353681,0.000176,2]
[349952076,1737534633501,-349.88679918,0.0002,2]
[349952078,1737534633512,-287.48457343,0.0002032,2]
[349952080,1737534633522,-272.19055,0.00020327,2]
[349952082,1737534633532,-381.525,0.0002042,2]
[349952085,1737534633551,-506.30298388,0.00020625,2]
[349952087,1737534633562,-6099.15736546,0.00021181,2]
[349952089,1737534633572,-781.3702567,0.00021284,2]
[349952091,1737534633582,-1188.55179333,0.0002137,2]
[349952093,1737534633593,-223.91050848,0.00021399,2]
[349952095,1737534633603,-300.0,0.00021399,2]
[349952097,1737534633612,-3491.85603367,0.000214,2]
[349952100,1737534633625,-517.9462302,0.000214,2]
[349952327,1737534638356,-543.17434545,0.000214,2]
[349952328,1737534638369,-1123.97539068,0.000214,2]
[349952329,1737534638379,-7254.866807,0.000214,3]
[349952330,1737534638390,-223.91050848,0.000214,2]
[349952331,1737534638400,-1363.04238469,0.000214,2]
[349952332,1737534638412,-652.68,0.0002149,3]
[349952333,1737534638422,-351.55574319,0.00021498,2]
[349952334,1737534638432,-158.73,0.00021499,2]
[349952335,1737534638443,-500.0,0.00021499,2]
[349952336,1737534638454,-172.60403316,0.00021499,2]
[349952337,1737534638464,-500.0,0.00021499,2]
[349952338,1737534638473,-500.0,0.00021499,2]
[349952339,1737534638482,-266.55567038,0.00021499,2]
[349952340,1737534638491,-236.63222888,0.00021499,2]
[349952341,1737534638501,-500.0,0.00021499,2]
[349952342,1737534638518,-500.0,0.00021499,2]
[349952344,1737534638527,-500.0,0.00021499,2]
[349952346,1737534638537,-500.0,0.00021499,2]
[349952348,1737534638547,-196.96077666,0.00021499,2]
[349952351,1737534638558,-500.0,0.00021499,2]
[349952352,1737534638568,-500.0,0.00021499,2]
[349952353,1737534638579,-500.0,0.00021499,2]
[349952354,1737534638591,-500.0,0.00021499,2]
[349952355,1737534638606,-500.0,0.00021499,2]
[349952356,1737534638616,-500.0,0.00021499,2]
[349952357,1737534638626,-500.0,0.00021499,2]
[349952358,1737534638638,-376.35518223,0.00021499,2]
[349952359,1737534638647,-500.0,0.00021499,2]
[349952360,1737534638659,-500.0,0.00021499,2]
[349952361,1737534638668,-500.0,0.00021499,2]
[349952362,1737534638677,-500.0,0.00021499,2]
[349952363,1737534638687,-299.51026058,0.00021499,2]
[349952364,1737534638698,-500.0,0.00021499,2]
[349952365,1737534638709,-500.0,0.00021499,2]
[349952366,1737534638720,-500.0,0.00021499,2]
[349952367,1737534638873,-500.0,0.00021499,2]